[Event "Early-Titled-Tuesday-Blitz-February-27-2024"]
[Site "Chess.com"]
[Date "2024.02.27"]
[Round "9"]
[White "betta2004"]
[Black "romulocardoso"]
[Result "1-0"]
[WhiteElo "2594"]
[BlackElo "2360"]
[TimeControl "180+1"]
[EndTime "9:40:21 PST"]
[Termination "betta2004 won by resignation"]

1. d4 {[%clk 0:02:59.7]} 1... Nf6 {[%clk 0:02:59.9]} 2. c4 {[%clk 0:02:56.7]}
2... e6 {[%clk 0:03:00.3]} 3. Nf3 {[%clk 0:02:54.8]} 3... Bb4+ {[%clk
0:03:00.6]} 4. Nbd2 {[%clk 0:02:54.8]} 4... O-O {[%clk 0:03:00.7]} 5. e3 {[%clk
0:02:55]} 5... d5 {[%clk 0:03:01.1]} 6. a3 {[%clk 0:02:53]} 6... Be7 {[%clk
0:03:01.1]} 7. Bd3 {[%clk 0:02:52.5]} 7... a5 {[%clk 0:03:01.2]} 8. O-O {[%clk
0:02:52]} 8... b6 {[%clk 0:03:01.6]} 9. Ne5 {[%clk 0:02:52.2]} 9... Bb7 {[%clk
0:03:01.9]} 10. f4 {[%clk 0:02:52.8]} 10... Nbd7 {[%clk 0:03:02.3]} 11. b3
{[%clk 0:02:46.7]} 11... Ne4 {[%clk 0:03:02.1]} 12. Qc2 {[%clk 0:02:44.6]} 12...
f5 {[%clk 0:03:01.9]} 13. Bb2 {[%clk 0:02:43.8]} 13... Ndf6 {[%clk 0:02:58.6]}
14. Rac1 {[%clk 0:02:42]} 14... Rc8 {[%clk 0:02:57.7]} 15. Nxe4 {[%clk
0:02:41.3]} 15... dxe4 {[%clk 0:02:45.6]} 16. Be2 {[%clk 0:02:40]} 16... c5
{[%clk 0:02:43.7]} 17. Rfd1 {[%clk 0:02:36.9]} 17... Qc7 {[%clk 0:02:43.5]} 18.
d5 {[%clk 0:02:34.4]} 18... exd5 {[%clk 0:02:39]} 19. cxd5 {[%clk 0:02:35.3]}
19... Rfd8 {[%clk 0:02:24.8]} 20. d6 {[%clk 0:02:29.4]} 20... Rxd6 {[%clk
0:02:19.4]} 21. Bc4+ {[%clk 0:02:27.4]} 21... Bd5 {[%clk 0:02:16.7]} 22. Rd2
{[%clk 0:02:20.8]} 22... Bxc4 {[%clk 0:02:14.2]} 23. Qxc4+ {[%clk 0:02:15.8]}
1-0

[Event "Early-Titled-Tuesday-Blitz-February-27-2024"]
[Site "Chess.com"]
[Date "2024.02.27"]
[Round "9"]
[White "rhwr"]
[Black "davigator"]
[Result "1-0"]
[WhiteElo "2302"]
[BlackElo "2388"]
[TimeControl "180+1"]
[EndTime "9:40:32 PST"]
[Termination "rhwr won by resignation"]

1. e4 {[%clk 0:02:59.6]} 1... c5 {[%clk 0:02:59.6]} 2. Nf3 {[%clk 0:02:59.8]}
2... Nc6 {[%clk 0:02:59.6]} 3. d4 {[%clk 0:02:58.6]} 3... cxd4 {[%clk
0:02:59.7]} 4. Nxd4 {[%clk 0:02:59.2]} 4... Nf6 {[%clk 0:02:59.9]} 5. Nc3 {[%clk
0:02:58.8]} 5... d6 {[%clk 0:02:59.9]} 6. Be2 {[%clk 0:02:58.3]} 6... e5 {[%clk
0:02:58.1]} 7. Nb3 {[%clk 0:02:58]} 7... h6 {[%clk 0:02:56.5]} 8. Be3 {[%clk
0:02:57.2]} 8... Be6 {[%clk 0:02:55.3]} 9. O-O {[%clk 0:02:57.6]} 9... Be7
{[%clk 0:02:55.1]} 10. Qd2 {[%clk 0:02:53.1]} 10... O-O {[%clk 0:02:53.1]} 11.
Rad1 {[%clk 0:02:53.5]} 11... a6 {[%clk 0:02:52.2]} 12. f4 {[%clk 0:02:51]}
12... exf4 {[%clk 0:02:49.5]} 13. Bxf4 {[%clk 0:02:49.5]} 13... Ne5 {[%clk
0:02:50.1]} 14. h3 {[%clk 0:02:41.3]} 14... Rc8 {[%clk 0:02:47.4]} 15. Nd4
{[%clk 0:02:39.6]} 15... Qd7 {[%clk 0:02:36.1]} 16. Kh2 {[%clk 0:02:31.2]} 16...
Rfd8 {[%clk 0:02:30.8]} 17. Qe1 {[%clk 0:02:14.2]} 17... Qc7 {[%clk 0:02:12.8]}
18. Qg3 {[%clk 0:02:12.3]} 18... Ng6 {[%clk 0:02:10.3]} 19. Nxe6 {[%clk
0:02:12.6]} 19... fxe6 {[%clk 0:02:08.7]} 20. Qxg6 {[%clk 0:02:12.8]} 20... e5
{[%clk 0:02:08.7]} 21. Bxh6 {[%clk 0:02:11.9]} 21... Bf8 {[%clk 0:02:05.9]} 22.
Rxf6 {[%clk 0:02:12.1]} 1-0

[Event "Early-Titled-Tuesday-Blitz-February-27-2024"]
[Site "Chess.com"]
[Date "2024.02.27"]
[Round "9"]
[White "As0nchess"]
[Black "JaackCamel"]
[Result "1-0"]
[WhiteElo "2539"]
[BlackElo "2222"]
[TimeControl "180+1"]
[EndTime "9:40:52 PST"]
[Termination "As0nchess won by resignation"]

1. e4 {[%clk 0:03:00.9]} 1... e6 {[%clk 0:02:59.2]} 2. d4 {[%clk 0:03:00.2]}
2... d5 {[%clk 0:02:58.9]} 3. Nc3 {[%clk 0:03:00.9]} 3... Bb4 {[%clk 0:02:57.9]}
4. e5 {[%clk 0:03:01.2]} 4... Ne7 {[%clk 0:02:57.1]} 5. a3 {[%clk 0:03:01.1]}
5... Bxc3+ {[%clk 0:02:56.7]} 6. bxc3 {[%clk 0:03:02]} 6... b6 {[%clk
0:02:56.9]} 7. h4 {[%clk 0:03:00.5]} 7... Ba6 {[%clk 0:02:53.8]} 8. Bxa6 {[%clk
0:02:56]} 8... Nxa6 {[%clk 0:02:53.3]} 9. h5 {[%clk 0:02:56.9]} 9... h6 {[%clk
0:02:51.5]} 10. a4 {[%clk 0:02:51.5]} 10... Nb8 {[%clk 0:02:49.4]} 11. a5 {[%clk
0:02:51.4]} 11... Nbc6 {[%clk 0:02:48.5]} 12. Qg4 {[%clk 0:02:45.2]} 12... Nf5
{[%clk 0:02:44.5]} 13. axb6 {[%clk 0:02:43.3]} 13... axb6 {[%clk 0:02:40.9]} 14.
Rxa8 {[%clk 0:02:41.4]} 14... Qxa8 {[%clk 0:02:39.8]} 15. Qd1 {[%clk 0:02:32.6]}
15... Na5 {[%clk 0:02:29.2]} 16. Nf3 {[%clk 0:02:31.8]} 16... Nc4 {[%clk
0:02:27.9]} 17. O-O {[%clk 0:02:31.4]} 17... O-O {[%clk 0:02:26.5]} 18. g4
{[%clk 0:02:29.3]} 18... Ne7 {[%clk 0:02:25.8]} 19. g5 {[%clk 0:02:29.3]} 19...
Nf5 {[%clk 0:02:24.2]} 20. gxh6 {[%clk 0:02:29.2]} 20... gxh6 {[%clk 0:02:22.6]}
21. Kh2 {[%clk 0:02:29.4]} 21... Kh7 {[%clk 0:02:20.9]} 22. Rg1 {[%clk 0:02:29]}
22... Rg8 {[%clk 0:02:20.5]} 23. Qd3 {[%clk 0:02:27.1]} 23... Rxg1 {[%clk
0:02:17.9]} 24. Nxg1 {[%clk 0:02:27.1]} 24... Qg8 {[%clk 0:02:16.4]} 25. Ne2
{[%clk 0:02:27]} 25... Qg4 {[%clk 0:02:11.5]} 26. Ng3 {[%clk 0:02:26.5]} 26...
Qf3 {[%clk 0:01:47.6]} 27. Qxf3 {[%clk 0:02:25]} 1-0

[Event "Early-Titled-Tuesday-Blitz-February-27-2024"]
[Site "Chess.com"]
[Date "2024.02.27"]
[Round "9"]
[White "GilbertoHernandezAmura"]
[Black "ClauSanLuis"]
[Result "1-0"]
[WhiteElo "2438"]
[BlackElo "2286"]
[TimeControl "180+1"]
[EndTime "9:41:09 PST"]
[Termination "GilbertoHernandezAmura won by resignation"]

1. d4 {[%clk 0:03:00.6]} 1... Nf6 {[%clk 0:02:45.4]} 2. Bg5 {[%clk 0:03:00.3]}
2... e6 {[%clk 0:02:36.4]} 3. e3 {[%clk 0:02:58.9]} 3... b6 {[%clk 0:02:34.7]}
4. Nd2 {[%clk 0:02:56.9]} 4... Bb7 {[%clk 0:02:35.1]} 5. Ngf3 {[%clk 0:02:55.2]}
5... Be7 {[%clk 0:02:34.3]} 6. Bd3 {[%clk 0:02:55.2]} 6... d6 {[%clk 0:02:34.3]}
7. c3 {[%clk 0:02:53.9]} 7... c5 {[%clk 0:02:34.5]} 8. Qc2 {[%clk 0:02:52.6]}
8... Nbd7 {[%clk 0:02:34.1]} 9. O-O-O {[%clk 0:02:41.7]} 9... Rc8 {[%clk
0:02:31.2]} 10. h4 {[%clk 0:02:05.5]} 10... cxd4 {[%clk 0:02:27.1]} 11. exd4
{[%clk 0:02:02.8]} 11... Nd5 {[%clk 0:02:26.7]} 12. Bb5 {[%clk 0:01:23.1]} 12...
Bxg5 {[%clk 0:02:14.6]} 13. hxg5 {[%clk 0:01:21.4]} 13... Qxg5 {[%clk
0:02:07.2]} 14. Nxg5 {[%clk 0:01:19]} 1-0

[Event "Early-Titled-Tuesday-Blitz-February-27-2024"]
[Site "Chess.com"]
[Date "2024.02.27"]
[Round "9"]
[White "Balla_Tamas"]
[Black "MusicCityMaster"]
[Result "0-1"]
[WhiteElo "2420"]
[BlackElo "2564"]
[TimeControl "180+1"]
[EndTime "9:41:33 PST"]
[Termination "MusicCityMaster won by resignation"]

1. e4 {[%clk 0:02:59.6]} 1... e6 {[%clk 0:02:58.4]} 2. d4 {[%clk 0:02:59.3]}
2... d5 {[%clk 0:02:59.2]} 3. Nd2 {[%clk 0:02:59.6]} 3... Nc6 {[%clk 0:02:58.8]}
4. c3 {[%clk 0:02:58.8]} 4... e5 {[%clk 0:02:57.6]} 5. exd5 {[%clk 0:02:55.7]}
5... Qxd5 {[%clk 0:02:57.1]} 6. Ngf3 {[%clk 0:02:56.4]} 6... e4 {[%clk
0:02:46.2]} 7. Bc4 {[%clk 0:02:56]} 7... Qf5 {[%clk 0:02:44.9]} 8. Qe2 {[%clk
0:02:11.2]} 8... Nf6 {[%clk 0:02:43.8]} 9. O-O {[%clk 0:02:11.2]} 9... Be7
{[%clk 0:02:39.4]} 10. Nh4 {[%clk 0:01:57.2]} 10... Qg4 {[%clk 0:02:36.6]} 11.
Qxg4 {[%clk 0:01:23.3]} 11... Nxg4 {[%clk 0:02:36.2]} 12. g3 {[%clk 0:01:23]}
12... Bxh4 {[%clk 0:02:34.1]} 13. gxh4 {[%clk 0:01:23.9]} 13... f5 {[%clk
0:02:30.3]} 14. f3 {[%clk 0:01:23.3]} 14... Ne3 {[%clk 0:02:23.3]} 15. Re1
{[%clk 0:01:17.7]} 15... Nc2 {[%clk 0:02:22]} 16. Re2 {[%clk 0:01:13.5]} 16...
Nxa1 {[%clk 0:02:21.3]} 17. fxe4 {[%clk 0:01:14]} 17... f4 {[%clk 0:02:19.5]}
18. Nf3 {[%clk 0:01:12.9]} 18... Bg4 {[%clk 0:02:18.3]} 19. Kf2 {[%clk
0:01:11.9]} 19... Rf8 {[%clk 0:02:12]} 20. Bd3 {[%clk 0:01:09.8]} 20... O-O-O
{[%clk 0:02:10.7]} 21. Bd2 {[%clk 0:01:09.8]} 21... Bxf3 {[%clk 0:02:05.1]} 22.
Kxf3 {[%clk 0:01:10]} 22... Ne5+ {[%clk 0:02:05.5]} 0-1

[Event "Early-Titled-Tuesday-Blitz-February-27-2024"]
[Site "Chess.com"]
[Date "2024.02.27"]
[Round "9"]
[White "ATM622"]
[Black "gm_rashid"]
[Result "1-0"]
[WhiteElo "2530"]
[BlackElo "2423"]
[TimeControl "180+1"]
[EndTime "9:41:33 PST"]
[Termination "ATM622 won by resignation"]

1. d4 {[%clk 0:03:00.9]} 1... Nf6 {[%clk 0:02:56.7]} 2. c4 {[%clk 0:03:00.8]}
2... c5 {[%clk 0:02:57]} 3. d5 {[%clk 0:03:00.8]} 3... b5 {[%clk 0:02:57.6]} 4.
cxb5 {[%clk 0:03:00.6]} 4... a6 {[%clk 0:02:58.3]} 5. e3 {[%clk 0:03:00.5]} 5...
d6 {[%clk 0:02:58.3]} 6. Nc3 {[%clk 0:02:59.5]} 6... g6 {[%clk 0:02:57.5]} 7.
Nf3 {[%clk 0:02:58.4]} 7... Bg7 {[%clk 0:02:54.4]} 8. Be2 {[%clk 0:02:55.8]}
8... O-O {[%clk 0:02:54.9]} 9. O-O {[%clk 0:02:55.7]} 9... Qb6 {[%clk
0:02:54.5]} 10. a4 {[%clk 0:02:53.9]} 10... axb5 {[%clk 0:02:54.6]} 11. Bxb5
{[%clk 0:02:53.6]} 11... Nbd7 {[%clk 0:02:54.6]} 12. Nd2 {[%clk 0:02:50.9]}
12... Ba6 {[%clk 0:02:54.7]} 13. Nc4 {[%clk 0:02:50.6]} 13... Qb7 {[%clk
0:02:50.5]} 14. Na5 {[%clk 0:02:44.2]} 14... Qb6 {[%clk 0:02:48.8]} 15. Nc6
{[%clk 0:02:43.5]} 15... Rfe8 {[%clk 0:02:37.2]} 16. Bd2 {[%clk 0:02:38.3]}
16... Ng4 {[%clk 0:02:34.1]} 17. Qxg4 {[%clk 0:02:36.2]} 17... Nf6 {[%clk
0:01:56.5]} 18. Qf3 {[%clk 0:02:32.7]} 18... Bxb5 {[%clk 0:01:55.3]} 19. axb5
{[%clk 0:02:32]} 19... Kf8 {[%clk 0:01:45.2]} 20. Qh3 {[%clk 0:02:25.7]} 20...
h5 {[%clk 0:01:43.1]} 21. e4 {[%clk 0:02:19.8]} 21... Ng4 {[%clk 0:01:42]} 22.
Qg3 {[%clk 0:02:12.1]} 22... Ne5 {[%clk 0:01:33.5]} 23. Nxe5 {[%clk 0:02:07.1]}
23... Bxe5 {[%clk 0:01:34.4]} 24. f4 {[%clk 0:02:03]} 24... Bd4+ {[%clk
0:01:34.3]} 25. Kh1 {[%clk 0:02:03.3]} 25... Reb8 {[%clk 0:01:29.6]} 26. f5
{[%clk 0:02:02.8]} 26... Kg7 {[%clk 0:01:27.8]} 27. fxg6 {[%clk 0:01:58.6]}
27... fxg6 {[%clk 0:01:28.7]} 28. Qg5 {[%clk 0:01:58.7]} 1-0

[Event "Early-Titled-Tuesday-Blitz-February-27-2024"]
[Site "Chess.com"]
[Date "2024.02.27"]
[Round "9"]
[White "dianamirza"]
[Black "FMStan15"]
[Result "0-1"]
[WhiteElo "1989"]
[BlackElo "2071"]
[TimeControl "180+1"]
[EndTime "9:41:41 PST"]
[Termination "FMStan15 won by resignation"]

1. e4 {[%clk 0:02:51.8]} 1... e6 {[%clk 0:02:59.2]} 2. d4 {[%clk 0:02:42]} 2...
d5 {[%clk 0:02:59.4]} 3. e5 {[%clk 0:02:37.7]} 3... c5 {[%clk 0:02:58.7]} 4. c3
{[%clk 0:02:32.9]} 4... Nc6 {[%clk 0:02:55.9]} 5. f4 {[%clk 0:02:32.1]} 5... Qb6
{[%clk 0:02:54]} 6. Nf3 {[%clk 0:02:32.2]} 6... Nh6 {[%clk 0:02:52.5]} 7. Qb3
{[%clk 0:02:31]} 7... Qxb3 {[%clk 0:02:51.5]} 8. axb3 {[%clk 0:02:31.9]} 8...
cxd4 {[%clk 0:02:51.9]} 9. Nxd4 {[%clk 0:02:30.3]} 9... Nxd4 {[%clk 0:02:50.1]}
10. cxd4 {[%clk 0:02:31.2]} 10... Nf5 {[%clk 0:02:49.1]} 11. Bb5+ {[%clk
0:02:24.4]} 11... Bd7 {[%clk 0:02:48.7]} 12. Bxd7+ {[%clk 0:02:24.2]} 12... Kxd7
{[%clk 0:02:48.5]} 13. O-O {[%clk 0:02:19.5]} 13... Nxd4 {[%clk 0:02:47.1]} 14.
Be3 {[%clk 0:02:18.6]} 14... Nc2 {[%clk 0:02:47.2]} 15. Rxa7 {[%clk 0:02:17.3]}
15... Rxa7 {[%clk 0:02:44.3]} 16. Bxa7 {[%clk 0:02:18.2]} 16... Be7 {[%clk
0:02:21.7]} 17. Rc1 {[%clk 0:02:18.2]} 17... Nb4 {[%clk 0:02:20.3]} 18. Na3
{[%clk 0:02:04.5]} 18... Nd3 {[%clk 0:02:16.9]} 19. Rc3 {[%clk 0:02:01.3]} 19...
Nxf4 {[%clk 0:02:13.6]} 20. Nb5 {[%clk 0:01:57.8]} 20... Ne2+ {[%clk 0:02:12.1]}
21. Kf2 {[%clk 0:01:57.2]} 21... Nxc3 {[%clk 0:02:12.3]} 22. bxc3 {[%clk
0:01:58.1]} 22... Ra8 {[%clk 0:01:58]} 23. b4 {[%clk 0:01:50.4]} 23... f6 {[%clk
0:01:53.7]} 24. Bd4 {[%clk 0:01:44.7]} 24... Ra2+ {[%clk 0:01:48.9]} 25. Kf3
{[%clk 0:01:43.5]} 25... fxe5 {[%clk 0:01:49]} 26. Bxe5 {[%clk 0:01:42.3]} 26...
Bf6 {[%clk 0:01:49.2]} 27. Bd6 {[%clk 0:01:38.5]} 27... Rc2 {[%clk 0:01:43.5]}
28. Bc5 {[%clk 0:01:36.2]} 0-1

[Event "Early-Titled-Tuesday-Blitz-February-27-2024"]
[Site "Chess.com"]
[Date "2024.02.27"]
[Round "9"]
[White "Dyadya81"]
[Black "vi_pranav"]
[Result "0-1"]
[WhiteElo "2852"]
[BlackElo "3105"]
[TimeControl "180+1"]
[EndTime "9:42:01 PST"]
[Termination "vi_pranav won by resignation"]

1. e4 {[%clk 0:03:00.9]} 1... e5 {[%clk 0:02:59.6]} 2. Nf3 {[%clk 0:03:01.1]}
2... Nc6 {[%clk 0:03:00.3]} 3. Nc3 {[%clk 0:03:01.6]} 3... Nf6 {[%clk 0:03:00]}
4. d4 {[%clk 0:03:02.2]} 4... exd4 {[%clk 0:03:00.9]} 5. Nxd4 {[%clk 0:03:03]}
5... Bb4 {[%clk 0:03:01.4]} 6. Nxc6 {[%clk 0:03:02.7]} 6... bxc6 {[%clk
0:03:02.3]} 7. Bd3 {[%clk 0:03:03.2]} 7... O-O {[%clk 0:03:03]} 8. O-O {[%clk
0:03:03.6]} 8... Re8 {[%clk 0:03:03.7]} 9. Bg5 {[%clk 0:03:02.7]} 9... h6 {[%clk
0:02:59.1]} 10. Bh4 {[%clk 0:03:03.2]} 10... d6 {[%clk 0:02:56]} 11. Re1 {[%clk
0:02:56.6]} 11... Rb8 {[%clk 0:02:38.6]} 12. e5 {[%clk 0:02:42.3]} 12... dxe5
{[%clk 0:02:34.2]} 13. Rxe5 {[%clk 0:02:41]} 13... Be6 {[%clk 0:02:28]} 14. Ne4
{[%clk 0:02:35.6]} 14... Be7 {[%clk 0:02:25.6]} 15. b3 {[%clk 0:02:19.7]} 15...
Rb4 {[%clk 0:01:56.4]} 16. c4 {[%clk 0:02:01]} 16... Rb8 {[%clk 0:01:46.5]} 17.
Qe2 {[%clk 0:01:52.2]} 17... Qd4 {[%clk 0:01:38.2]} 0-1

[Event "Early-Titled-Tuesday-Blitz-February-27-2024"]
[Site "Chess.com"]
[Date "2024.02.27"]
[Round "9"]
[White "chesstrainer2042"]
[Black "nicolasbatista3"]
[Result "1-0"]
[WhiteElo "2569"]
[BlackElo "2422"]
[TimeControl "180+1"]
[EndTime "9:42:05 PST"]
[Termination "chesstrainer2042 won by resignation"]

1. c4 {[%clk 0:03:00.9]} 1... c6 {[%clk 0:02:59.7]} 2. Nf3 {[%clk 0:02:59.5]}
2... d5 {[%clk 0:03:00.1]} 3. d4 {[%clk 0:03:00.1]} 3... Nf6 {[%clk 0:02:58.5]}
4. Nc3 {[%clk 0:02:59.3]} 4... e6 {[%clk 0:02:58.3]} 5. e3 {[%clk 0:02:59]} 5...
Bd6 {[%clk 0:02:55.9]} 6. Qc2 {[%clk 0:02:59]} 6... O-O {[%clk 0:02:55.7]} 7.
Bd3 {[%clk 0:02:59.6]} 7... dxc4 {[%clk 0:02:55.6]} 8. Bxc4 {[%clk 0:02:59.8]}
8... b5 {[%clk 0:02:56.1]} 9. Bd3 {[%clk 0:03:00.3]} 9... Bb7 {[%clk 0:02:55.6]}
10. e4 {[%clk 0:02:58.5]} 10... Be7 {[%clk 0:02:31.5]} 11. e5 {[%clk 0:02:58]}
11... Nd5 {[%clk 0:02:32.2]} 12. Bxh7+ {[%clk 0:02:57.8]} 12... Kh8 {[%clk
0:02:32.9]} 13. Be4 {[%clk 0:02:56.8]} 13... Nd7 {[%clk 0:02:12.2]} 14. h4
{[%clk 0:02:45.5]} 14... f5 {[%clk 0:02:10]} 15. exf6 {[%clk 0:02:43.4]} 15...
N7xf6 {[%clk 0:02:09.4]} 16. Ne5 {[%clk 0:02:40.8]} 16... Nxe4 {[%clk
0:01:54.6]} 17. Qxe4 {[%clk 0:02:32.8]} 17... Kg8 {[%clk 0:01:52.4]} 18. Ng6
{[%clk 0:02:28.7]} 18... Rf6 {[%clk 0:01:52.1]} 19. Bg5 {[%clk 0:02:26.9]} 19...
Rf7 {[%clk 0:01:09]} 20. Nxd5 {[%clk 0:02:05.5]} 20... cxd5 {[%clk 0:01:02.6]}
21. Qxe6 {[%clk 0:02:01.8]} 21... Bxg5 {[%clk 0:01:00.3]} 22. hxg5 {[%clk
0:01:59.5]} 22... Qa5+ {[%clk 0:00:53.1]} 23. Kf1 {[%clk 0:01:57.2]} 1-0

[Event "Early-Titled-Tuesday-Blitz-February-27-2024"]
[Site "Chess.com"]
[Date "2024.02.27"]
[Round "9"]
[White "picturesquecheck"]
[Black "falzehope0"]
[Result "0-1"]
[WhiteElo "2450"]
[BlackElo "2357"]
[TimeControl "180+1"]
[EndTime "9:42:19 PST"]
[Termination "falzehope0 won by resignation"]

1. e4 {[%clk 0:03:00.9]} 1... e6 {[%clk 0:02:47.6]} 2. d4 {[%clk 0:03:00.6]}
2... d5 {[%clk 0:02:47.5]} 3. Nd2 {[%clk 0:03:00.3]} 3... f5 {[%clk 0:02:47]} 4.
exf5 {[%clk 0:02:59]} 4... exf5 {[%clk 0:02:45.7]} 5. Ngf3 {[%clk 0:02:59.9]}
5... Nf6 {[%clk 0:02:45.3]} 6. Bd3 {[%clk 0:02:59.6]} 6... Bd6 {[%clk
0:02:44.8]} 7. O-O {[%clk 0:03:00]} 7... O-O {[%clk 0:02:44.7]} 8. Ne5 {[%clk
0:03:00.2]} 8... c6 {[%clk 0:02:43.9]} 9. c3 {[%clk 0:03:00]} 9... Nbd7 {[%clk
0:02:39.7]} 10. Re1 {[%clk 0:02:50.3]} 10... Ne4 {[%clk 0:02:38.3]} 11. Ndf3
{[%clk 0:02:21.1]} 11... Qf6 {[%clk 0:02:32.5]} 12. Bf4 {[%clk 0:02:15.7]} 12...
Bb8 {[%clk 0:02:05.6]} 13. Nxd7 {[%clk 0:02:12.7]} 13... Bxd7 {[%clk 0:02:04.9]}
14. Bxb8 {[%clk 0:02:12.9]} 14... Raxb8 {[%clk 0:02:04.9]} 15. Ne5 {[%clk
0:02:12.8]} 15... Be8 {[%clk 0:02:03.1]} 16. f3 {[%clk 0:02:12.9]} 16... Ng5
{[%clk 0:02:01]} 17. Qd2 {[%clk 0:02:04.9]} 17... Qh6 {[%clk 0:02:00]} 18. Qf2
{[%clk 0:02:01.4]} 18... Ne6 {[%clk 0:01:57.9]} 19. g3 {[%clk 0:01:47.8]} 19...
Ng5 {[%clk 0:01:54.9]} 20. Bf1 {[%clk 0:01:45.3]} 20... f4 {[%clk 0:01:53.9]}
21. g4 {[%clk 0:01:40.4]} 21... Nh3+ {[%clk 0:01:41]} 22. Bxh3 {[%clk
0:01:39.4]} 22... Qxh3 {[%clk 0:01:41.9]} 23. Qg2 {[%clk 0:01:27.3]} 23... Qh4
{[%clk 0:01:39.3]} 24. Nd3 {[%clk 0:01:24.5]} 24... h5 {[%clk 0:01:37]} 25. h3
{[%clk 0:01:24.4]} 25... hxg4 {[%clk 0:01:36.3]} 26. hxg4 {[%clk 0:01:25.3]}
26... Bg6 {[%clk 0:01:35]} 27. Nc5 {[%clk 0:01:19.5]} 27... Rfe8 {[%clk
0:01:29.9]} 28. Nd7 {[%clk 0:01:14.2]} 28... Rxe1+ {[%clk 0:01:26.9]} 29. Rxe1
{[%clk 0:01:13.7]} 29... Qxe1+ {[%clk 0:01:27.8]} 30. Kh2 {[%clk 0:01:14.1]} 0-1

[Event "Early-Titled-Tuesday-Blitz-February-27-2024"]
[Site "Chess.com"]
[Date "2024.02.27"]
[Round "9"]
[White "ajedrezsinlimites"]
[Black "Schachmalanders"]
[Result "1-0"]
[WhiteElo "2569"]
[BlackElo "2459"]
[TimeControl "180+1"]
[EndTime "9:42:53 PST"]
[Termination "ajedrezsinlimites won by resignation"]

1. e4 {[%clk 0:03:00.1]} 1... c6 {[%clk 0:02:55.6]} 2. d4 {[%clk 0:02:59.2]}
2... d5 {[%clk 0:02:55.9]} 3. exd5 {[%clk 0:02:59.7]} 3... cxd5 {[%clk 0:02:56]}
4. c3 {[%clk 0:03:00.1]} 4... Nc6 {[%clk 0:02:54.3]} 5. Bf4 {[%clk 0:03:00.4]}
5... Nf6 {[%clk 0:02:49.8]} 6. Bd3 {[%clk 0:02:59.8]} 6... g6 {[%clk 0:02:48.3]}
7. Nf3 {[%clk 0:02:59.1]} 7... Bg7 {[%clk 0:02:48.1]} 8. h3 {[%clk 0:02:59.5]}
8... O-O {[%clk 0:02:47.1]} 9. Nbd2 {[%clk 0:02:59.4]} 9... Bf5 {[%clk
0:02:46.8]} 10. Bxf5 {[%clk 0:02:59.3]} 10... gxf5 {[%clk 0:02:47.1]} 11. g4
{[%clk 0:03:00.2]} 11... Qd7 {[%clk 0:02:38.1]} 12. Ne5 {[%clk 0:02:58.7]} 12...
Nxe5 {[%clk 0:02:37.8]} 13. Bxe5 {[%clk 0:02:59.6]} 13... Ne4 {[%clk 0:02:32.4]}
14. Bxg7 {[%clk 0:02:59.1]} 14... Kxg7 {[%clk 0:02:33.3]} 15. Rg1 {[%clk
0:02:59.2]} 15... Kh8 {[%clk 0:02:18.4]} 16. Nf3 {[%clk 0:02:58.3]} 16... f6
{[%clk 0:02:03.3]} 17. Nh4 {[%clk 0:02:56.6]} 17... fxg4 {[%clk 0:02:02.7]} 18.
hxg4 {[%clk 0:02:56.3]} 18... e5 {[%clk 0:01:55.5]} 19. Nf5 {[%clk 0:02:53.8]}
19... exd4 {[%clk 0:01:53.9]} 20. Qxd4 {[%clk 0:02:52]} 20... Ng5 {[%clk
0:01:38.1]} 21. Rg3 {[%clk 0:02:45.9]} 21... Rae8+ {[%clk 0:01:36]} 22. Ne3
{[%clk 0:02:45.7]} 22... Re4 {[%clk 0:01:30.2]} 23. Qd3 {[%clk 0:02:45.5]} 23...
d4 {[%clk 0:01:04.8]} 24. O-O-O {[%clk 0:02:44.5]} 24... Qc7 {[%clk 0:01:02.4]}
25. Nd5 {[%clk 0:02:27.9]} 25... Qa5 {[%clk 0:00:58.1]} 26. c4 {[%clk
0:02:23.1]} 26... Qxa2 {[%clk 0:00:55.5]} 27. f4 {[%clk 0:02:23.3]} 27... Qa1+
{[%clk 0:00:51.9]} 28. Kc2 {[%clk 0:02:23]} 28... Qa4+ {[%clk 0:00:52.1]} 29.
Kb1 {[%clk 0:02:22.5]} 29... Ne6 {[%clk 0:00:42.3]} 30. b3 {[%clk 0:02:18.6]}
30... Nc5 {[%clk 0:00:16.8]} 31. bxa4 {[%clk 0:02:07.8]} 31... Nxd3 {[%clk
0:00:16.8]} 32. Rgxd3 {[%clk 0:02:07.8]} 32... Rc8 {[%clk 0:00:14.7]} 33. Rxd4
{[%clk 0:02:07.1]} 33... Re2 {[%clk 0:00:15.4]} 34. Nxf6 {[%clk 0:02:05.7]}
34... Rxc4 {[%clk 0:00:14.3]} 35. Rxc4 {[%clk 0:02:04.9]} 1-0

[Event "Early-Titled-Tuesday-Blitz-February-27-2024"]
[Site "Chess.com"]
[Date "2024.02.27"]
[Round "9"]
[White "mertfelin"]
[Black "Kotofeyca"]
[Result "0-1"]
[WhiteElo "2317"]
[BlackElo "2434"]
[TimeControl "180+1"]
[EndTime "9:42:56 PST"]
[Termination "Kotofeyca won by resignation"]

1. e4 {[%clk 0:03:00.5]} 1... c5 {[%clk 0:02:59.8]} 2. Nf3 {[%clk 0:03:00.7]}
2... d6 {[%clk 0:03:00]} 3. d4 {[%clk 0:02:58.5]} 3... cxd4 {[%clk 0:03:00.9]}
4. Nxd4 {[%clk 0:02:59.4]} 4... Nf6 {[%clk 0:03:01]} 5. Nc3 {[%clk 0:02:59.9]}
5... a6 {[%clk 0:03:01.4]} 6. Rg1 {[%clk 0:03:00.6]} 6... b5 {[%clk 0:02:58]} 7.
a4 {[%clk 0:03:00.6]} 7... b4 {[%clk 0:02:57.9]} 8. Nd5 {[%clk 0:03:01.3]} 8...
Nxe4 {[%clk 0:02:55.2]} 9. Bc4 {[%clk 0:03:01.8]} 9... e6 {[%clk 0:02:48]} 10.
Qe2 {[%clk 0:03:02.4]} 10... Nc5 {[%clk 0:02:34.1]} 11. c3 {[%clk 0:02:58]}
11... bxc3 {[%clk 0:02:16.4]} 12. b4 {[%clk 0:02:57.3]} 12... Nb7 {[%clk
0:02:09.3]} 13. Nxc3 {[%clk 0:02:12.1]} 13... Be7 {[%clk 0:02:00.1]} 14. Be3
{[%clk 0:02:08.7]} 14... O-O {[%clk 0:01:56]} 15. a5 {[%clk 0:02:07.1]} 15... d5
{[%clk 0:01:53.6]} 16. Bd3 {[%clk 0:02:07]} 16... Bxb4 {[%clk 0:01:40.4]} 17.
Bd2 {[%clk 0:02:06]} 17... Nc5 {[%clk 0:01:33.5]} 18. Bc2 {[%clk 0:02:05.1]}
18... Bb7 {[%clk 0:01:21.6]} 19. f3 {[%clk 0:01:58.7]} 19... Nc6 {[%clk
0:01:15.4]} 20. Nxc6 {[%clk 0:01:56.2]} 20... Bxc6 {[%clk 0:01:16.3]} 21. Kf2
{[%clk 0:01:38.2]} 21... Qh4+ {[%clk 0:01:01.7]} 22. g3 {[%clk 0:01:37.4]} 22...
Qd4+ {[%clk 0:01:00]} 23. Qe3 {[%clk 0:01:36]} 23... Qxe3+ {[%clk 0:00:57.3]}
24. Kxe3 {[%clk 0:01:36.6]} 24... d4+ {[%clk 0:00:33.1]} 25. Kxd4 {[%clk
0:01:36.7]} 25... Rfd8+ {[%clk 0:00:33]} 26. Kc4 {[%clk 0:01:37]} 26... Rxd2
{[%clk 0:00:31]} 27. Kxb4 {[%clk 0:01:37]} 27... Rxc2 {[%clk 0:00:29.5]} 28.
Rac1 {[%clk 0:01:35.7]} 28... Rxc1 {[%clk 0:00:28.2]} 29. Rxc1 {[%clk
0:01:36.6]} 29... Nd3+ {[%clk 0:00:28.4]} 0-1